Cogmind - Beta 10.2 @@@ ROGUE MODE // 2020.11.03 @ 12:59:07 // Halloween2020/ForbiddenLore Player: blelm Result: Self-destructed Performance ------------- Evolutions (1) 500 Regions Visited (3) 600 Robots Destroyed (10) 50 Value Destroyed (185) 185 Prototype IDs (0) 0 Alien Tech Used (0) 0 Bonus (0) 0 TOTAL SCORE: 1335 Bonus ------- None Cogmind --------- Core Integrity 283/400 Matter 289/300 Energy 100/100 System Corruption 0% Temperature Cool (0) Movement Core (200) Ox3 Location -9/Materials Parts ------- > --- POWER (1) -------- (None) > --- PROPULSION (3) --- (None) > --- UTILITY (3) ------ Small Storage Unit Small Storage Unit > --- WEAPON (2) ------- Hammer > --- INVENTORY (8) ---- Hacking Suite Grenade Launcher Peak State ------------ > --- POWER ------------ Ion Engine > --- PROPULSION ------- Improved Treads Improved Treads > --- UTILITY ---------- Small Storage Unit Small Storage Unit > --- WEAPON ----------- EM Shotgun EM Shotgun > --- INVENTORY -------- Ion Engine Light Treads Improved Treads Improved Treads EM Shotgun Assault Rifle Grenade Launcher Hammer [Rating: 12] Favorites ----------- Power Ion Engine Engine Ion Engine Propulsion Improved Treads Treads Improved Treads Leg Aluminum Leg Wheel Compact Wheel Utility Small Storage Unit Storage Small Storage Unit Weapon EM Shotgun Energy Gun EM Shotgun Ballistic Gun Assault Rifle Launcher Grenade Launcher Impact Weapon Hammer Build | -11 -10 -10 -9 ------- Run | Scr Mat Min Mat Slots Evolved 2 | . . . 2 Power . | . . . . Propulsion 1 | . . . 1 Utility 1 | . . . 1 Weapon . | . . . . Parts Attached 17 | 4 5 5 3 Power 1 | . . 1 . Engine 1 | . . 1 . Core . | . . . . Reactor . | . . . . Propulsion 6 | 2 2 1 1 Treads 5 | 1 2 1 1 Leg . | . . . . Wheel 1 | 1 . . . Hover . | . . . . Flight . | . . . . Utility 2 | 1 1 . . Device . | . . . . Storage 2 | 1 1 . . Processor . | . . . . Hackware . | . . . . Protection . | . . . . Artifact . | . . . . Weapon 8 | 1 2 3 2 Energy Gun 4 | . 2 2 . Energy Cannon . | . . . . Ballistic Gun 2 | 1 . . 1 Ballistic Cannon . | . . . . Launcher 1 | . . 1 . Special Weapon . | . . . . Impact Weapon 1 | . . . 1 Slashing Weapon . | . . . . Piercing Weapon . | . . . . Special Melee Weapon . | . . . . Unidentified Prototypes . | . . . . Parts Lost 10 | . . 6 4 Power 2 | . . 1 1 Propulsion 4 | . . 2 2 Utility . | . . . . Weapon 4 | . . 3 1 Highest Loss Streak 5 | . . 5 4 Average Slot Usage (%) 90 | . 92 96 70 Engine 13 | . 14 14 9 Treads 24 | . 22 27 19 Wheel 1 | . 6 . . Storage 25 | . 20 28 22 Energy Gun 20 | . 24 25 . Ballistic Gun 2 | . 3 . 8 Impact Weapon 2 | . . . 11 Naked Turns . | . . . . Heaviest Build 19 | 13 19 19 17 Greatest Support 46 | 20 46 46 46 Greatest Overweight (x) . | . . . . Average Overweight (x) . | . . . . Largest Inventory Capacity 8 | 6 8 8 8 Average Capacity 7 | 4 7 8 8 Most Carried 8 | 5 8 8 4 Average Carried 6 | 3 6 7 2 Final Capacity 8 | 6 8 8 8 Final Carried 8 | 3 8 5 2 Class Distribution -------------------- 100% | Mutant Dominant Class ---------------- Mutant | -10/Materials Mutant | -10/Mines Mutant | -9/Materials Resources | -11 -10 -10 -9 ----------- Run | Scr Mat Min Mat Matter Collected 324 | 240 50 34 . Remotely . | . . . . Salvage Created 386 | 80 111 135 60 Parts 18 | 1 8 9 . Haulers Intercepted . | . . . . Recyclers Shooed 1 | . . 1 . Parts Field Recycled . | . . . . Retrieved Matter . | . . . . Parts Self-Destructed . | . . . . Prevented . | . . . . Kills | -11 -10 -10 -9 ------- Run | Scr Mat Min Mat Combat Hostiles Destroyed 6 | . . 5 1 Melee 1 | . . . 1 Guns 4 | . . 4 . Classes Destroyed 6 | 1 1 3 1 Worker 1 | . . 1 . Recycler 2 | 1 1 . . Operator 1 | . 1 . . Swarmer 3 | . . 3 . Grunt 2 | . . 2 . Sentry 1 | . . . 1 Best Kill Streak 3 | 1 1 3 1 Combat Bots Only 3 | . . 3 1 Max Kills in Single Turn 1 | 1 1 1 1 Gunslinging . | . . . . Exploded . | . . . . Melee 1 | . . . 1 Uniques/NPCs Destroyed . | . . . . Combat | -11 -10 -10 -9 -------- Run | Scr Mat Min Mat Damage Taken 1333 | . 21 677 635 Core 209 | . . 92 117 Absorbed by Shields . | . . . . Core Remaining (%) 81 | 100 . 63 . Volleys Fired 16 | 3 2 11 . Largest 2 | 2 2 2 . Hottest 90 | 90 90 90 . Shots Fired 31 | 6 4 21 . Gun 31 | 6 4 21 . Cannon . | . . . . Launcher . | . . . . Special . | . . . . Kinetic . | . . . . Thermal 6 | 6 . . . Explosive . | . . . . Electromagnetic 25 | . 4 21 . Robot Hit Streak 8 | 4 7 8 . Robot Miss Streak 2 | 1 1 2 . Penetration Max . | . . . . Secondary Targets 2 | . . 2 . Max Gunslinging Chain 1 | . . 1 . Shots Hit Robots 56 | 4 4 18 30 Core Hits 18 | 2 4 9 3 Critical Hits . | . . . . Critical Kills . | . . . . Critical Parts Destroyed . | . . . . Melee Attacks 35 | . . . 35 Impact 35 | . . . 35 Slashing . | . . . . Piercing . | . . . . Sneak Attacks . | . . . . Combat Hostiles . | . . . . Follow-up Attacks . | . . . . Damage Inflicted 808 | 46 106 289 367 Guns 324 | 46 74 204 . Cannons . | . . . . Explosions 114 | . 32 82 . Melee 367 | . . . 367 Ramming 3 | . . 3 . Kinetic . | . . . . Thermal 160 | 46 32 82 . Explosive . | . . . . Electromagnetic 278 | . 74 204 . Impact 367 | . . . 367 Slashing . | . . . . Piercing . | . . . . Highest Corruption . | . . . . Average Corruption . | . . . . Corruption Purged . | . . . . Overload Shots . | . . . . Overflow Damage 1 | . . 1 . Projectiles . | . . . . Explosions 1 | . . 1 . Melee . | . . . . Knockbacks . | . . . . Impact . | . . . . Kinetic . | . . . . Secondary . | . . . . Self-Inflicted Damage 77 | . 21 56 . Shots 2 | . 1 1 . Rammed 4 | . . 4 . Targets Rammed 5 | . . 5 . Kicked . | . . . . Crushed 1 | . . 1 . Highest Temperature 254 | 90 42 254 . Average Temperature 82 | 46 22 102 . Received Heat Transfer 276 | . . 87 189 Siege Activations . | . . . . Robots Corrupted 1 | . . 1 . Combat Hostiles 1 | . . 1 . Parts Fried . | . . . . Impact Corruptions 1 | . . . 1 Robots Melted . | . . . . Combat Hostiles . | . . . . Parts Melted . | . . . . Heat Transferred 274 | 124 50 100 . Parts Sabotaged . | . . . . Parts Stolen . | . . . . Parts Stripped . | . . . . Power Chain Reactions 2 | . 1 1 . Missiles Intercepted . | . . . . Alert | -11 -10 -10 -9 ------- Run | Scr Mat Min Mat Peak Influence 120 | 5 28 120 90 Initial 10 | . 3 10 . Average 26 | 2 14 36 10 Maximum Alert Level . | . . . . Low Security (%) 100 | 100 100 100 100 Level 1 . | . . . . Level 2 . | . . . . Level 3 . | . . . . Level 4 . | . . . . Level 5 . | . . . . High Security . | . . . . Max Security . | . . . . Squads Dispatched . | . . . . Investigation . | . . . . Extermination . | . . . . Reinforcement . | . . . . Assault . | . . . . Garrison . | . . . . Intercept . | . . . . Construction Impeded . | . . . . Haulers Reinforced . | . . . . Stealth | -11 -10 -10 -9 --------- Run | Scr Mat Min Mat Distress Signals 1 | . . . 1 Communications Jammed . | . . . . Distress Signals . | . . . . Times Spotted 22 | . 2 13 7 Peak Tracking Total 10 | . 2 10 6 Tactical Retreats 1 | . . . 1 Traps | -11 -10 -10 -9 ------- Run | Scr Mat Min Mat Traps Triggered . | . . . . Indirectly . | . . . . Trap Hack Attempts . | . . . . Triggered . | . . . . Disarmed . | . . . . Reprogrammed . | . . . . Reused . | . . . . Traps Extracted . | . . . . Installed . | . . . . Triggered . | . . . . Machines | -11 -10 -10 -9 ---------- Run | Scr Mat Min Mat Machines Disabled . | . . . . Max in Single Turn . | . . . . Machines Sabotaged . | . . . . Garrisons Compromised . | . . . . Overloaded Fab Kills . | . . . . Fab Network Shutdowns . | . . . . Hacking | -11 -10 -10 -9 --------- Run | Scr Mat Min Mat Machines Accessed 2 | . 1 1 . Terminals 2 | . 1 1 . Fabricators . | . . . . Repair Stations . | . . . . Recycling Units . | . . . . Scanalyzers . | . . . . Garrison Access . | . . . . Total Hacks 6 | . 2 4 . Successful 3 | . 1 2 . Failed 3 | . 1 2 . Catastrophic . | . . . . Database Lockouts . | . . . . Manual 6 | . 2 4 . Terminals 6 | . 2 4 . Fabricators . | . . . . Repair Stations . | . . . . Recycling Units . | . . . . Scanalyzers . | . . . . Garrison Access . | . . . . Terminal Hacks 3 | . 1 2 . Robot Analysis 2 | . 1 1 . Unreport Threat 1 | . . 1 . Fabricator Hacks . | . . . . Repair Station Hacks . | . . . . Recycling Unit Hacks . | . . . . Scanalyzer . | . . . . Garrison Access Hacks . | . . . . Unauthorized Hacks . | . . . . Terminals . | . . . . Fabricators . | . . . . Repair Stations . | . . . . Recycling Units . | . . . . Scanalyzers . | . . . . Garrison Access . | . . . . Data Cores Recovered 1 | . 1 . . Used 1 | . 1 . . Hacking Detections 1 | . 1 . . Full Trace Events . | . . . . Feedback Events . | . . . . Feedback Blocked . | . . . . Robot Schematics Acquired . | . . . . Robots Built . | . . . . Matter . | . . . . Time . | . . . . Total Robot Build Rating . | . . . . Part Schematics Acquired . | . . . . Parts Built . | . . . . Matter . | . . . . Time . | . . . . Total Part Build Rating . | . . . . Parts Repaired . | . . . . Time . | . . . . Parts Recycled . | . . . . Recycled Matter . | . . . . Retrieved Matter . | . . . . Retrieved Components . | . . . . Parts Scanalyzed . | . . . . Part Schematics Acquired . | . . . . Parts Damaged . | . . . . Bothacking | -11 -10 -10 -9 ------------ Run | Scr Mat Min Mat Used RIF Installer . | . . . . Robots Hacked . | . . . . Non-combat . | . . . . Combat . | . . . . Robot Hacks Applied . | . . . . Relay Couplers Released . | . . . . Robots Rewired . | . . . . Allies Hacked . | . . . . Hacks Repelled . | . . . . Allies | -11 -10 -10 -9 -------- Run | Scr Mat Min Mat Total Allies . | . . . . Largest Group . | . . . . Highest-Rated Group . | . . . . Highest-Rated Ally . | . . . . Total Orders . | . . . . Ally Attacks . | . . . . Total Damage . | . . . . Kills . | . . . . Allies Corrupted . | . . . . Allies Melted . | . . . . Intel | -11 -10 -10 -9 ------- Run | Scr Mat Min Mat Robot Analysis Total 2 | . 1 1 . Derelict Logs Recovered 1 | . . 1 . Drone Launches . | . . . . Drone Recoveries . | . . . . Exploration | -11 -10 -10 -9 ------------- Run | Scr Mat Min Mat Turns Passed 1030 | 35 209 599 187 Spaces Moved 550 | 18 147 343 42 Core . | . . . . Treads 456 | 1 70 343 42 Legs 3 | 3 . . . Wheels 91 | 14 77 . . Hover . | . . . . Flight . | . . . . Fastest Speed 100 | 100 100 160 160 Average Speed 149 | 106 128 160 160 Slowest Speed 160 | 160 160 160 160 Overloaded Moves . | . . . . Propulsion Burnouts . | . . . . Robots Hopped . | . . . . Cave-ins Triggered . | . . . . Exploration Rate (%) 26 | 2 26 71 6 Regions Visited 3 Branch Regions 1 Pre-discovered Areas 1 | . . 1 . Known Exits Taken . | . . . . Unknown Exits Taken 3 | 1 1 1 . Scrap Searched 1 | . . 1 . Spaces Dug . | . . . . Terrain Destroyed 9 | . . 9 . Melee . | . . . . Projectile . | . . . . AOE 9 | . . 9 . Terrain Rammed . | . . . . Walls Destroyed . | . . . . Machines Disabled . | . . . . Actions | -11 -10 -10 -9 --------- Run | Scr Mat Min Mat Total 673 | 28 168 368 109 Wait 34 | . . 5 29 Move 547 | 17 146 342 42 Hop . | . . . . Pick Up 8 | . 8 . . Fast Attach 5 | 2 3 . . Attach 7 | 1 . 3 3 Detach 2 | 1 1 . . Swap 5 | 1 2 2 . Drop 9 | 3 6 . . Fire 16 | 3 2 11 . Melee 35 | . . . 35 Ram . | . . . . Kick . | . . . . Crush 5 | . . 5 . Escape Stasis . | . . . . Rewire . | . . . . Trap . | . . . . Miscellaneous . | . . . . Route ------- -11/Scrapyard -10/Materials -10/Mines -9/Materials (discovered 1 exit: Mat) History --------- Turn | Location | Event 3 | -11/Scrapyard | Discovered new exit (range 1) 36 | -11/Scrapyard | Entered Materials 180 | -10/Materials | Discovered new exit (range 16) 245 | -10/Materials | Entered Mines 305 | -10/Mines | Build established: Mutant 616 | -10/Mines | Learned location of 1 exit from Materials 752 | -10/Mines | Discovered new exit (range 5) 755 | -10/Mines | Learned location of Storage (-9) 795 | -10/Mines | Assembled infested the area 836 | -10/Mines | Lost 5 parts (1p2n2w) 844 | -10/Mines | Entered Materials 844 | -9/Materials | Evolved 2 slots: Propulsion x1, Utility x1 845 | -9/Materials | Identified exit to Materials 1031 | -9/Materials | Self-destructed Last Messages --------------- 00809_ as-21566 destroyed. 00809_ D-53 Grenadier destroyed. 00811_ The unstable cave ceiling collapses. 00812_ as-95040 destroyed. 00812_ as-18040 destroyed. 00820_ The unstable cave ceiling collapses. 00820_ D-53 Grenadier destroyed. 00821_ The unstable cave ceiling collapses. 00832_ Acquired 4 matter. PARAMETERS=PROPULSION_1,UTILITY_1 LOCATION=UNKNOWN GOAL=ESCAPE Loading 1 Materials exit... 00983_ Assault Rifle destroyed. 01002_ Ion Engine destroyed. 01003_ W-16 Scout sends out distress signal. 01014_ Imp. Treads destroyed. 01018_ Destroyed Heat Sink. 01018_ Y-45 Defender system corrupted by crushing effect. 01028_ Y-45 Defender destroyed. Map ----- +----------------------------------------------------+ | ?????????????????????????????????????????????????? | | ?????????????????????????????????????????????????? | | ?????????????????????????????????????????????????? | | ?????????????????????????????????????????????????? | | ?????????????????????????????????????????????????? | | ?????????????????????????????????????????????????? | | ?????????????????????????????????????????????????? | | ?????????????????????????????????????????????????? | | ?????????????????????????????????????????????????? | | ?????????????????????????????????????????????????? | | ?????????????????????????????????????????????????? | | ?????????????????????????????????????????????????? | | ?????????????????????????????????????????????????? | | ???????????????????#####?????????????????????????? | | ????????############ #?????????????????????????? | | ????? #?????????????????????????? | | ????? #?????????????????????????? | | ????? ########??????????????????? | | ??????############## #??????????????????? | | ???????????????????# ##########+## ????? | | ???????????????????# ???? | | ???????????????????######## ???? | | ????????????????#???####### ???? | | ????????????????# """"""" # ############???????? | | ????????????????# """"""" # #??????????????????? | | ????????????????# """""""@# #??????????????????? | | ????????????????# """""""%+ #??????????????????? | | ????????????????# """"""" # #??????????????????? | | ????????????????# s # #??????????????????? | | ????????????????# # #??????????????????? | | ????????????????# # #??????????????????? | | ????????????????########### #??????????????????? | | ??????????????????????????# #??????????????????? | | ??????????????????????????# #??????????????????? | | ??????????????????????????# #??????????????????? | | ??????????????????????????# #??????????????????? | | ??????????????????????????# #??????????????????? | | ??????????????????????????# #??????????????????? | | ??????????????????????????? /??????????????????? | | ??????????????????????????? #??????????????????? | | ??????????????????????????? ???????????????????? | | ?????????????????????????????????????????????????? | | ?????????????????????????????????????????????????? | | ?????????????????????????????????????????????????? | | ?????????????????????????????????????????????????? | | ?????????????????????????????????????????????????? | | ?????????????????????????????????????????????????? | | ?????????????????????????????????????????????????? | | ?????????????????????????????????????????????????? | | ?????????????????????????????????????????????????? | +----------------------------------------------------+ Best States ------------- Heat Dissipation 28 Energy Generation 10 Energy Capacity 250 Matter Stores 300 Matter Capacity 300 Sight Range 16 Terrain Scan Density 10 Evasion (%) 40 Recoil Reduction 2 Item Schematics ----------------- None Robot Schematics ------------------ None Fabricated ------------ Nothing Alien Tech Used ----------------- None Achievements -------------- None Challenges ------------ None Game ------ Seed AbsorptionSmallBay Manual? 0 Play Time 00:08:32 Cumulative 44.1 hours Start 2020.11.03 @ 12:51:45 End 2020.11.03 @ 12:59:07 Sessions 1 Manual Loads 0 Difficulty Rogue Special Mode Halloween2020/ForbiddenLore Game No. 34 Rogue 34 Adventurer 0 Explorer 0 Win Type - Total 0 Types 0/0/0/0/0/0/0/0/0 Lore% 21 Gallery% 29 Achievement% 26 Wizard Run 0 Options --------- ASCII 1 Keyboard 1 Movement Vi Keybinds 0 Fullscreen 1 Font 16/Terminus Map View 75x55 Tactical HUD 1 Map Filters NONE Filters NONE Steam 1 RUN: 46fe2b89-04cd-49e1-bf27-dfe65a2ff80a